bitfinex/quotes_SOLUSD_20250802
["timestamp","ask_amount","ask_price","bid_price","bid_amount"]
[1754158876798,26.0,158.6,158.59,0.06]
[1754158877416,18.965136,158.65,158.59,0.06]
[1754158877417,0.62885171,158.64,158.59,24.24210991]
[1754158877616,26.0,158.62,158.6,23.52210991]
[1754158877788,50.28,158.65,158.61,23.52210991]
[1754158877984,50.28,158.65,158.64,23.52210991]
[1754158878211,69.242739,158.68,158.64,23.52210991]
[1754158878388,26.0,158.65,158.64,23.52210991]
[1754158878590,0.72,158.71,158.64,24.18210991]
[1754158878929,0.62885171,158.73,158.7,23.52210991]
[1754158879129,51.0,158.75,158.72,23.52210991]
[1754158879130,50.28,158.75,158.72,23.52210991]
[1754158879311,0.62885171,158.77,158.72,23.52210991]
[1754158879629,0.62885171,158.77,158.7,16.78468397]
[1754158879831,26.0,158.75,158.72,23.52210991]
[1754158880330,50.26,158.78,158.71,0.63008002]
[1754158880534,50.26,158.78,158.74,23.52210991]
[1754158880840,0.65885171,158.79,158.75,0.66]
[1754158881142,0.03,158.81,158.77,16.78468397]
[1754158881438,0.03,158.81,158.76,0.62988158]
[1754158881439,0.03,158.81,158.8,40.30679388]
[1754158881650,0.62885171,158.89,158.81,16.78468397]
[1754158881945,51.56,158.9,158.86,23.52210991]
[1754158881946,26.0,158.87,158.86,23.52210991]
[1754158882121,26.0,158.87,158.82,1.28964362]
[1754158882307,50.84,158.9,158.86,23.52210991]
[1754158882503,1.34885171,158.89,158.84,23.52210991]
[1754158882818,1.34885171,158.89,158.82,23.52210991]
[1754158882819,24.24210991,158.88,158.82,23.52210991]
[1754158883037,50.84,158.9,158.79,16.78468397]
[1754158883038,50.87096162,158.87,158.79,16.78468397]
[1754158883200,0.72,158.87,158.83,23.52210991]
[1754158883401,50.84,158.9,158.76,0.66]
[1754158883402,23.52210991,158.84,158.76,0.66]
[1754158883606,23.52210991,158.84,158.76,23.52210991]
[1754158883607,26.0,158.8,158.76,23.52210991]
[1754158883943,26.0,158.8,158.74,16.78468397]
[1754158883944,26.0,158.81,158.79,23.52210991]
[1754158884315,26.0,158.81,158.77,0.66]
[1754158884516,51.36,158.84,158.8,23.52210991]
[1754158884817,26.72,158.88,158.83,23.52210991]
[1754158885042,1.34885171,158.9,158.85,23.52210991]
[1754158885261,82.880259,158.97,158.85,23.52210991]
[1754158885262,52.08,158.89,158.85,23.52210991]
[1754158885457,51.36,158.89,158.81,1.28968326]
[1754158885623,51.36,158.89,158.78,16.78468397]
[1754158885624,26.0,158.86,158.78,16.78468397]
[1754158885827,26.0,158.86,158.81,23.52210991]
[1754158885828,50.24210991,158.86,158.81,23.52210991]
[1754158886124,24.87096162,158.85,158.79,23.52210991]
[1754158886430,26.0,158.86,158.79,23.52210991]
[1754158886431,26.0,158.86,158.82,23.52210991]
[1754158886653,26.0,158.83,158.8,23.52210991]
[1754158886819,26.0,158.86,158.75,0.66]
[1754158886820,49.52210991,158.81,158.75,0.66]
[1754158887021,0.72,158.8,158.76,23.52210991]
[1754158887325,0.72,158.8,158.69,0.63015943]
[1754158887326,50.87096162,158.79,158.73,23.52210991]
[1754158887512,26.72,158.79,158.74,23.52210991]
[1754158887716,26.0,158.77,158.76,23.52210991]
[1754158888012,77.34,158.8,158.74,16.78468397]
[1754158888214,23.52210991,158.79,158.74,23.52210991]
[1754158888443,26.0,158.77,158.73,23.52210991]
[1754158888654,26.72,158.77,158.72,23.52210991]
[1754158889062,26.0,158.75,158.69,16.78468397]
[1754158889219,26.0,158.75,158.68,0.66]
[1754158889555,78.00885171,158.75,158.71,23.52210991]
[1754158889762,24.24210991,158.74,158.65,0.63031831]
[1754158889927,0.72,158.74,158.66,17.44468397]
[1754158890121,0.72,158.74,158.69,23.52210991]
[1754158890321,0.72,158.74,158.7,23.52210991]
[1754158890523,101.53096162,158.75,158.68,23.52210991]
[1754158890524,24.87096162,158.73,158.68,23.52210991]
[1754158890722,49.52210991,158.71,158.63,0.66]
[1754158890948,23.52210991,158.7,158.65,23.52210991]
[1754158891166,1.34885171,158.69,158.6,0.69]
[1754158891331,49.52210991,158.67,158.61,23.52210991]
[1754158891555,26.0,158.67,158.62,23.52210991]
[1754158891764,26.72,158.67,158.6,0.69]
[1754158891962,26.72,158.67,158.62,23.52210991]
[1754158892279,0.72,158.66,158.61,23.52210991]
[1754158892586,26.0,158.64,158.59,0.06]
[1754158892798,0.72,158.63,158.59,0.06]
[1754158893457,0.72,158.62,158.59,0.06]
[1754158893652,26.0,158.62,158.59,23.58210991]
[1754158894006,26.0,158.64,158.59,23.58210991]
[1754158894154,0.72,158.63,158.59,23.58210991]
[1754158894704,26.0,158.64,158.6,23.52210991]
[1754158895205,51.32,158.65,158.62,23.52210991]
[1754158895485,51.86885171,158.7,158.64,23.52210991]
[1754158895688,51.24,158.7,158.67,23.52210991]
[1754158895852,45.44,158.82,158.67,23.52210991]
[1754158895853,0.72,158.75,158.69,23.52210991]
[1754158896053,0.72,158.75,158.67,1.32023886]
[1754158896054,51.96,158.75,158.67,1.32023886]
[1754158896259,52.58885171,158.75,158.7,23.52210991]
[1754158896794,50.49467597,158.82,158.74,23.52210991]
[1754158896795,0.72,158.78,158.74,23.52210991]
[1754158896955,0.72,158.77,158.73,23.52210991]
[1754158897156,26.72,158.77,158.73,23.52210991]
[1754158897352,26.72,158.77,158.69,0.63015943]
[1754158897353,0.72,158.76,158.72,23.52210991]
[1754158897868,26.0,158.72,158.69,23.52210991]
[1754158898072,23.52210991,158.76,158.71,23.52210991]
[1754158898255,23.52210991,158.72,158.67,23.52210991]
[1754158898454,24.15096162,158.72,158.67,23.52210991]
[1754158898652,26.0,158.73,158.68,23.52210991]
[1754158898856,26.0,158.73,158.7,23.52210991]
[1754158899282,26.0,158.73,158.69,0.69]
[1754158899476,1.25885171,158.81,158.72,23.52210991]
[1754158899701,55.57798754,158.8,158.77,23.52210991]
[1754158899973,26.0,158.79,158.76,23.52210991]
[1754158900178,74.64210991,158.82,158.76,23.52210991]
[1754158900413,26.0,158.79,158.77,0.69]
[1754158900788,51.12,158.82,158.77,24.21210991]
[1754158901008,26.0,158.81,158.77,24.21210991]
[1754158901310,51.74885171,158.82,158.77,24.21210991]
[1754158901524,75.27096162,158.82,158.76,23.52210991]
[1754158901829,49.52210991,158.79,158.73,24.21210991]
[1754158902308,49.52210991,158.79,158.69,26.0]
[1754158902309,23.52210991,158.77,158.71,0.69]
[1754158902479,24.15096162,158.78,158.71,0.69]
[1754158902679,24.15096162,158.78,158.72,23.52210991]
[1754158903104,24.15096162,158.78,158.71,0.69]
[1754158903288,24.15096162,158.78,158.72,23.52210991]
[1754158903619,24.15096162,158.78,158.65,0.63031831]
[1754158903620,23.52210991,158.74,158.65,0.63031831]
[1754158903786,23.52210991,158.74,158.62,50.98]
[1754158903787,26.0,158.71,158.66,24.21210991]
[1754158904486,26.0,158.71,158.66,23.52210991]
[1754158904689,50.15210991,158.71,158.65,23.52210991]
[1754158904894,49.52210991,158.71,158.65,23.52210991]
[1754158905212,24.15096162,158.7,158.63,16.78468397]
[1754158905408,26.0,158.71,158.68,23.52210991]
[1754158905712,26.0,158.71,158.68,0.69]
[1754158905913,49.52210991,158.71,158.64,17.47468397]
[1754158906223,49.52210991,158.71,158.63,23.52210991]
[1754158906224,49.52210991,158.68,158.63,23.52210991]
[1754158906376,26.0,158.68,158.63,24.21210991]
[1754158907106,50.84,158.7,158.66,23.52210991]
[1754158907308,50.84,158.7,158.66,0.69]
[1754158907309,76.84,158.7,158.66,0.69]
[1754158907499,49.52210991,158.67,158.59,0.06]
[1754158907811,23.52210991,158.6,158.59,0.06]
[1754158908024,55.87795413,158.66,158.59,23.58210991]
[1754158908025,0.62885171,158.62,158.59,23.58210991]
[1754158908205,0.62885171,158.64,158.6,24.21210991]
[1754158908384,0.62885171,158.64,158.59,0.06]
[1754158908385,100.93096162,158.65,158.59,23.58210991]
[1754158908584,76.76,158.65,158.62,23.52210991]
[1754158908785,76.76,158.65,158.62,0.69]
[1754158908982,76.76,158.65,158.62,24.21210991]
[1754158909187,76.76,158.65,158.62,0.69]
[1754158909630,50.76,158.67,158.63,0.69]
[1754158909789,74.28210991,158.67,158.61,23.52210991]
[1754158910244,74.28210991,158.67,158.6,1.32051702]
[1754158910245,50.76,158.67,158.6,1.32051702]
[1754158910414,50.76,158.67,158.62,23.52210991]
[1754158910628,50.76,158.67,158.63,23.52210991]
[1754158910836,49.52210991,158.64,158.59,0.06]
[1754158911128,50.72,158.63,158.59,0.06]
[1754158911283,74.87096162,158.63,158.59,0.06]
[1754158911489,74.24210991,158.63,158.59,0.06]
[1754158911726,50.72,158.63,158.59,0.06]
[1754158912083,74.24210991,158.63,158.59,0.06]
[1754158912289,74.87096162,158.63,158.59,0.06]
[1754158912514,23.52210991,158.6,158.59,0.06]
[1754158912717,24.15096162,158.6,158.59,0.06]
[1754158913298,0.62885171,158.6,158.59,0.06]
[1754158913496,24.15096162,158.6,158.59,0.06]
[1754158913921,24.78096162,158.6,158.59,0.06]
[1754158914134,75.42096162,158.6,158.59,0.06]
[1754158914510,51.26885171,158.6,158.59,0.06]
[1754158914710,74.79096162,158.6,158.59,0.06]
[1754158915513,75.42096162,158.6,158.59,0.06]
[1754158915917,51.89885171,158.6,158.59,0.06]
[1754158916107,75.42096162,158.6,158.59,0.06]
[1754158917013,92.20564559,158.6,158.59,0.06]
[1754158917805,96.66017768,158.6,158.59,0.06]
[1754158918005,92.20564559,158.6,158.59,0.06]
[1754158918730,96.65759342,158.6,158.59,0.06]
[1754158918930,92.20564559,158.6,158.59,0.06]
[1754158919709,96.65503015,158.6,158.59,0.06]
[1754158920333,91.94564559,158.6,158.59,0.06]
[1754158920510,0.62885171,158.6,158.59,0.06]
[1754158920721,19.596335,158.66,158.59,24.27210991]
[1754158921018,74.51096162,158.65,158.59,0.75]
[1754158921331,23.52210991,158.6,158.59,0.06]
[1754158921503,26.0,158.6,158.59,0.06]
[1754158921712,50.36,158.61,158.59,0.72]
[1754158922034,73.88210991,158.61,158.59,0.06]
[1754158922208,24.15096162,158.6,158.59,0.06]
[1754158922840,0.62885171,158.6,158.59,0.06]
[1754158923027,50.32,158.61,158.59,0.72]
[1754158923223,0.62885171,158.63,158.59,24.24210991]
[1754158923423,0.62885171,158.63,158.59,0.72]
[1754158923424,50.32,158.61,158.59,0.72]
[1754158924120,24.15096162,158.6,158.59,0.06]
[1754158925618,24.78096162,158.6,158.59,0.06]
[1754158926651,24.15096162,158.6,158.59,0.06]
[1754158928247,74.31096162,158.6,158.59,0.06]
[1754158928442,50.78885171,158.6,158.59,0.06]
[1754158928657,74.27096162,158.6,158.59,0.06]
[1754158928948,50.12,158.6,158.59,0.72]
[1754158929568,76.12,158.6,158.59,0.72]
[1754158930464,23.52210991,158.64,158.59,24.24210991]
[1754158930685,50.0,158.63,158.6,24.18210991]
[1754158930846,50.0,158.62,158.6,0.66]
[1754158931045,76.0,158.62,158.6,0.66]
[1754158931475,50.0,158.62,158.6,0.66]
[1754158931685,24.15096162,158.61,158.59,0.06]
[1754158931981,76.0,158.6,158.59,0.06]
[1754158932183,100.15096162,158.6,158.59,0.06]
[1754158933305,76.62885171,158.6,158.59,0.06]
[1754158933490,76.0,158.6,158.59,0.72]
[1754158933689,0.62885171,158.64,158.59,0.72]
[1754158933892,26.0,158.61,158.6,0.66]
[1754158935886,0.62885171,158.67,158.6,24.18210991]
[1754158936076,77.81923264,158.66,158.61,0.66]
[1754158936273,24.15096162,158.65,158.61,0.66]
[1754158936531,23.52210991,158.63,158.59,0.06]
[1754158936717,0.62885171,158.65,158.59,0.06]
[1754158936718,23.52210991,158.6,158.59,0.06]
[1754158937006,73.34210991,158.6,158.59,0.06]
[1754158937384,73.97210991,158.6,158.59,0.06]
[1754158937589,73.34210991,158.6,158.59,0.06]
[1754158937794,49.82,158.6,158.59,0.06]
[1754158938300,78.44709163,158.6,158.59,0.06]
[1754158938507,95.2317756,158.6,158.59,0.06]
[1754158938672,97.7610996,158.6,158.59,0.06]
[1754158938996,125.31085861,158.6,158.59,0.06]
[1754158939710,101.7887487,158.6,158.59,0.06]
[1754158939882,51.96760041,158.6,158.59,0.06]
[1754158940083,47.93995131,158.6,158.59,0.06]
[1754158940299,97.67995131,158.6,158.59,0.06]
[1754158940502,80.89526734,158.6,158.59,0.06]
[1754158941223,78.36594334,158.6,158.59,0.06]
[1754158941418,78.99594334,158.6,158.59,0.06]
[1754158941925,78.36594334,158.6,158.59,0.06]
[1754158942803,95.78062731,158.6,158.59,0.06]
[1754158943001,95.05792646,158.6,158.59,0.06]
[1754158943400,95.03792646,158.6,158.59,0.06]
[1754158943599,95.66792646,158.6,158.59,0.06]
[1754158943893,123.22516329,158.6,158.59,0.06]
[1754158944090,123.22516329,158.6,158.57,0.06]
[1754158944091,16.78468397,158.59,158.57,0.06]
[1754158944313,26.0,158.51,158.5,50.1]
[1754158944519,99.14210991,158.51,158.5,50.1]
[1754158944717,103.62279966,158.51,158.5,50.1]
[1754158944926,0.62885171,158.53,158.5,50.76]
[1754158945097,73.14210991,158.52,158.5,50.76]
[1754158945291,24.15096162,158.51,158.5,50.1]
[1754158945491,28.63466878,158.51,158.5,50.1]
[1754158945721,0.62885171,158.53,158.5,50.76]
[1754158945896,26.0,158.55,158.5,50.76]
[1754158945897,49.64,158.52,158.51,0.66]
[1754158946097,49.64,158.52,158.5,50.1]
[1754158946301,73.79096162,158.52,158.5,50.1]
[1754158946502,23.52210991,158.51,158.5,50.1]
[1754158946741,73.79096162,158.52,158.5,50.1]
[1754158947210,28.01516708,158.51,158.5,50.1]
[1754158948253,32.05994024,158.51,158.5,50.1]
[1754158948433,99.05462421,158.51,158.5,50.1]
[1754158948757,105.36234989,158.51,158.5,50.1]
[1754158948942,104.03132078,158.51,158.5,50.1]
[1754158949344,110.34007101,158.51,158.5,50.1]
[1754158949836,104.66017249,158.51,158.5,50.1]
[1754158950036,110.96892272,158.51,158.5,50.1]
[1754158950257,55.02017249,158.51,158.5,50.1]
[1754158950457,99.68245137,158.51,158.5,50.1]
[1754158951035,49.47245137,158.51,158.5,50.1]
[1754158951360,82.3277674,158.51,158.5,50.1]
[1754158951536,99.68245137,158.51,158.5,50.1]
[1754158952248,99.11245137,158.51,158.5,50.1]
[1754158952553,69.02678937,158.51,158.5,50.1]
[1754158952759,123.64451049,158.51,158.5,50.1]
[1754158952950,129.32440901,158.51,158.5,50.1]
[1754158953153,129.32440901,158.51,158.45,0.1]
[1754158953154,26.0,158.47,158.45,0.1]
[1754158953378,99.11245137,158.46,158.45,0.1]
[1754158953675,105.99319225,158.46,158.45,0.1]
[1754158953976,42.78468397,158.44,158.43,0.06]
[1754158954146,42.78468397,158.44,158.23,1.2969078]
[1754158954147,18.94,158.4,158.23,1.2969078]
[1754158954488,23.52210991,158.24,158.23,1.2969078]
[1754158954782,73.18210991,158.24,158.23,1.2969078]
[1754158955141,96.65873279,158.24,158.23,1.2969078]
[1754158955474,92.19532391,158.24,158.23,1.2969078]
[1754158955677,92.82417562,158.24,158.23,1.2969078]
[1754158956169,97.27450834,158.24,158.23,1.2969078]
[1754158956342,92.82417562,158.24,158.23,1.2969078]
[1754158956536,42.53532391,158.24,158.23,1.2969078]
[1754158956747,92.19532391,158.24,158.23,1.2969078]
[1754158956948,42.53532391,158.24,158.23,1.9869078]
[1754158957247,49.66,158.24,158.23,1.9869078]
[1754158957657,73.18210991,158.24,158.23,1.9869078]
[1754158957944,23.52210991,158.24,158.23,1.9869078]
[1754158958134,73.20210991,158.24,158.23,1.9869078]
[1754158958334,26.0,158.21,158.16,27.6]
[1754158958561,49.52210991,158.17,158.16,27.6]
[1754158958768,49.52210991,158.17,158.15,7.02]
[1754158958769,116.55679388,158.17,158.15,7.02]
[1754158958966,116.55679388,158.17,158.05,0.69]
[1754158958967,26.0,158.12,158.05,0.69]
[1754158959170,23.52210991,158.06,158.05,0.69]
[1754158959373,23.52210991,158.08,158.05,0.69]
[1754158959542,24.15096162,158.11,158.05,24.21210991]
[1754158959737,24.15096162,158.11,158.01,0.63287133]
[1754158959738,23.52210991,158.07,158.06,0.69]
[1754158959976,49.7,158.07,158.02,23.52210991]
[1754158960146,24.15096162,158.06,158.0,167.10306403]
[1754158960474,23.52210991,158.06,158.05,0.06]
[1754158960633,23.52210991,158.06,158.05,0.75]
[1754158960634,49.76,158.06,158.05,0.75]
[1754158961041,24.15096162,158.09,158.05,0.75]
[1754158961242,26.0,158.1,158.05,0.75]
[1754158961243,49.52210991,158.1,158.05,0.75]
[1754158961465,49.52210991,158.1,158.05,0.06]
[1754158961466,23.52210991,158.08,158.05,0.06]
[1754158961652,50.36885171,158.07,158.06,0.69]
[1754158961854,50.36885171,158.07,158.05,0.06]
[1754158962142,49.74,158.07,158.05,0.06]
[1754158962357,0.57,158.15,158.05,0.06]
[1754158962358,23.52210991,158.11,158.05,23.58210991]
[1754158962558,49.74,158.1,158.07,23.52210991]
[1754158962764,26.62885171,158.12,158.08,24.21210991]
[1754158962968,0.62885171,158.2,158.11,23.52210991]
[1754158963269,49.7,158.14,158.12,0.69]
[1754158963475,49.7,158.14,158.13,0.69]
[1754158963855,0.62885171,158.25,158.13,24.21210991]
[1754158964044,22.88011522,158.26,158.13,24.21210991]
[1754158964045,19.0096,158.26,158.14,44.10703505]
[1754158964248,0.62885171,158.27,158.14,44.10703505]
[1754158964249,0.62885171,158.27,158.23,23.52210991]
[1754158964458,19.005987,158.29,158.26,23.52210991]
[1754158964665,49.8,158.3,158.27,24.21210991]
[1754158964979,49.8,158.29,158.28,0.69]
[1754158965476,49.8,158.29,158.25,23.52210991]
[1754158965477,49.8,158.29,158.25,24.21210991]
[1754158965676,49.8,158.29,158.26,0.69]
[1754158965970,75.8,158.3,158.27,0.69]
[1754158966169,75.78,158.3,158.28,0.69]
[1754158966615,75.78,158.3,158.27,23.52210991]
[1754158966616,49.78,158.29,158.27,23.52210991]
[1754158966751,49.78,158.29,158.26,23.52210991]
[1754158967279,49.78,158.29,158.27,24.21210991]
[1754158967464,49.78,158.29,158.27,23.52210991]
[1754158967790,49.76,158.31,158.28,24.21210991]
[1754158968082,0.62885171,158.38,158.3,23.52210991]
[1754158968251,49.74,158.37,158.32,23.52210991]
[1754158968444,49.74,158.37,158.24,0.63195146]
[1754158968445,24.15096162,158.36,158.25,16.78468397]
[1754158968664,24.15096162,158.36,158.3,23.52210991]
[1754158968850,50.15096162,158.36,158.3,23.52210991]
[1754158969353,26.62885171,158.36,158.31,23.52210991]
[1754158969567,26.62885171,158.36,158.31,24.21210991]
[1754158969748,26.62885171,158.36,158.32,24.21210991]
[1754158969944,26.62885171,158.36,158.32,23.52210991]
[1754158970175,26.0,158.34,158.33,0.69]
[1754158970388,26.0,158.34,158.32,23.52210991]
[1754158970389,49.72,158.34,158.32,23.52210991]
[1754158970692,18.39007626,158.44,158.33,24.21210991]
[1754158970693,49.72,158.38,158.33,24.21210991]
[1754158970888,49.72,158.38,158.36,23.52210991]
[1754158971079,24.15096162,158.41,158.36,24.21210991]
[1754158971270,49.72,158.4,158.36,24.21210991]
[1754158971472,49.72,158.4,158.39,23.52210991]
[1754158971677,49.72,158.4,158.39,24.21210991]
[1754158973462,49.72,158.4,158.39,23.52210991]
[1754158974117,49.7,158.41,158.39,24.21210991]
[1754158974463,49.7,158.41,158.4,24.21210991]
[1754158974993,50.15096162,158.44,158.39,23.52210991]
[1754158975290,49.7,158.42,158.39,0.69]
[1754158975457,49.7,158.42,158.4,24.21210991]
[1754158976093,49.68,158.42,158.39,23.52210991]
[1754158976260,0.62885171,158.44,158.37,0.69]
[1754158976261,49.68,158.44,158.41,23.52210991]
[1754158976467,49.68,158.45,158.43,23.52210991]
[1754158977290,46.22885171,158.47,158.4,0.69]
[1754158977481,49.68,158.46,158.43,23.52210991]
[1754158977793,45.6,158.47,158.43,23.52210991]
[1754158977794,49.68,158.45,158.43,23.52210991]
[1754158977997,49.68,158.45,158.42,23.52210991]
[1754158978405,46.22885171,158.47,158.42,23.52210991]
[1754158978607,49.68,158.45,158.42,23.52210991]
[1754158978783,49.68,158.45,158.43,23.52210991]
[1754158978987,49.68,158.45,158.44,23.52210991]
[1754158979298,49.68,158.45,158.43,23.52210991]
[1754158979505,49.68,158.45,158.34,59.28993088]
[1754158979506,26.0,158.42,158.34,18.983137]
[1754158979805,49.68,158.45,158.41,23.52210991]
[1754158979806,50.36,158.43,158.41,23.52210991]
[1754158979974,50.36,158.43,158.42,23.52210991]
[1754158980514,0.62885171,158.46,158.42,24.21210991]
[1754158980796,3.30013937,158.57,158.35,10.63151247]
[1754158980797,50.36,158.49,158.43,1.32119358]
[1754158981190,50.36,158.49,158.43,0.69]
[1754158981191,23.52210991,158.46,158.43,0.69]
[1754158981703,26.64,158.51,158.45,23.52210991]
[1754158981704,0.03,158.51,158.45,23.52210991]
[1754158981873,0.03,158.51,158.39,42.78468397]
[1754158981874,50.38,158.5,158.43,0.7]
[1754158982076,23.52210991,158.5,158.43,0.7]
[1754158982271,50.38,158.49,158.44,23.52210991]
[1754158982479,50.38,158.49,158.45,24.22210991]
[1754158982683,0.03,158.47,158.45,0.7]
[1754158983094,0.03,158.47,158.46,24.22210991]
[1754158984415,0.03,158.47,158.46,41.00679388]
[1754158984906,0.03,158.51,158.46,41.00679388]
[1754158985112,0.03,158.51,158.43,0.63119358]
[1754158985113,0.03,158.51,158.47,0.7]
[1754158985420,0.03,158.51,158.49,23.52210991]
[1754158985610,73.87210991,158.51,158.45,24.22210991]
[1754158985810,73.87210991,158.51,158.41,0.7]
[1754158985811,23.52210991,158.49,158.41,0.7]
[1754158985995,23.52210991,158.46,158.41,0.7]
[1754158986189,50.36,158.46,158.41,24.22210991]
[1754158986390,74.51096162,158.46,158.41,0.7]
[1754158986692,23.52210991,158.45,158.39,23.52210991]
[1754158986889,0.62885171,158.44,158.39,23.52210991]
[1754158987508,26.0,158.49,158.43,23.52210991]
[1754158987707,26.0,158.49,158.44,23.52210991]
[1754158987708,50.32,158.47,158.44,23.52210991]
[1754158988092,50.3,158.48,158.45,0.7]
[1754158988287,23.55210991,158.51,158.38,0.63139285]
[1754158988288,0.62885171,158.5,158.46,23.52210991]
[1754158988489,0.03,158.51,158.49,23.52210991]
[1754158988720,0.03,158.51,158.5,24.15302473]
[1754158989020,0.64,158.61,158.52,26.0]
[1754158989182,23.52210991,158.64,158.52,50.15294513]
[1754158989183,50.3,158.6,158.52,50.15294513]
[1754158989382,50.3,158.6,158.52,50.85294513]
[1754158989893,0.62885171,158.62,158.52,50.85294513]
[1754158990104,0.62885171,158.62,158.52,67.6376291]
[1754158990305,50.24,158.61,158.52,50.85294513]
[1754158990611,0.62885171,158.6,158.52,50.85294513]
[1754158990797,0.62885171,158.6,158.52,24.22210991]
[1754158991914,0.62885171,158.6,158.52,0.7]
[1754158992088,24.15096162,158.6,158.52,24.22210991]
[1754158992297,24.15096162,158.6,158.52,0.7]
[1754158992484,24.15096162,158.6,158.52,24.22210991]
[1754158992907,0.62885171,158.6,158.52,24.22210991]
[1754158993315,26.0,158.61,158.52,41.00679388]
[1754158993626,0.62885171,158.6,158.52,24.22210991]
[1754158993929,76.14,158.61,158.52,24.22210991]
[1754158994115,0.67,158.66,158.52,41.00679388]
[1754158994310,0.67,158.66,158.51,10.63087502]
[1754158994311,50.74885171,158.65,158.6,23.52210991]
[1754158994508,51.41885171,158.65,158.6,23.52210991]
[1754158994904,23.52210991,158.63,158.57,23.52210991]
[1754158995134,0.62885171,158.62,158.57,23.52210991]
[1754158995437,1.29885171,158.64,158.6,23.52210991]
[1754158995728,0.62885171,158.66,158.63,23.52210991]
[1754158996506,50.88885171,158.67,158.64,23.52210991]
[1754158996721,51.55885171,158.67,158.6,0.7]
[1754158996907,75.08096162,158.67,158.62,23.52210991]
[1754158997216,0.67,158.66,158.59,23.52210991]
[1754158997400,23.52210991,158.63,158.58,23.52210991]
[1754158997727,0.62885171,158.62,158.58,23.52210991]
[1754158998026,50.26,158.67,158.61,23.52210991]
[1754158998027,0.2,158.67,158.61,23.52210991]
[1754158998228,0.2,158.67,158.66,23.52210991]
[1754158998413,26.0,158.64,158.57,0.7]
[1754158998733,26.0,158.64,158.6,23.52210991]
[1754158999224,0.62885171,158.63,158.54,26.0]
[1754158999401,23.52210991,158.62,158.57,23.52210991]
[1754158999607,50.94885171,158.61,158.57,23.52210991]
[1754159000106,0.82885171,158.67,158.58,1.33059654]
[1754159000305,0.2,158.67,158.66,23.52210991]
[1754159000513,0.2,158.67,158.66,24.22210991]
[1754159000754,0.03,158.72,158.66,41.00679388]
[1754159001049,0.03,158.74,158.71,47.04421982]
[1754159001219,0.03,158.74,158.73,47.04421982]
[1754159001626,50.52,158.84,158.81,23.52210991]
[1754159001831,50.52,158.84,158.83,23.52210991]
[1754159002311,74.06210991,158.86,158.8,23.52210991]
[1754159002510,74.06210991,158.86,158.78,23.52210991]
[1754159002511,23.52210991,158.83,158.78,23.52210991]
[1754159002719,0.62885171,158.82,158.78,23.52210991]
[1754159002937,0.62885171,158.82,158.75,0.7]
[1754159003229,0.62885171,158.82,158.72,0.63004032]
[1754159003230,26.0,158.81,158.8,38.24434027]
[1754159003548,26.0,158.81,158.78,38.24434027]
[1754159003841,26.0,158.81,158.79,38.24434027]
[1754159004819,51.12885171,158.83,158.8,38.24434027]
[1754159005142,50.5,158.83,158.8,38.24434027]
[1754159005323,50.5,158.83,158.79,38.24434027]
[1754159005523,0.62885171,158.84,158.79,38.24434027]
[1754159005742,38.24434027,158.81,158.76,38.24434027]
[1754159005956,0.62885171,158.8,158.76,38.24434027]
[1754159006130,64.87319198,158.8,158.74,38.24434027]
[1754159006447,64.87319198,158.8,158.68,142.47218255]
[1754159006448,38.24434027,158.77,158.68,143.17218255]
[1754159006737,0.62885171,158.76,158.71,38.24434027]
[1754159006944,0.62885171,158.76,158.73,38.24434027]
[1754159007306,50.44,158.77,158.71,0.7]
[1754159007307,26.0,158.75,158.74,38.24434027]
[1754159007506,26.0,158.75,158.72,38.24434027]
[1754159007732,26.0,158.75,158.68,0.7]
[1754159007946,26.0,158.75,158.71,38.24434027]